Cogmind - Beta 10 X2 @@@ ROGUE MODE // 2020.09.02 @ 02:31:38 Player: Torako Result: Destroyed by D-53 Grenadier with Mini Grenade Launcher Performance ------------- Evolutions (0) 0 Regions Visited (2) 400 Robots Destroyed (7) 35 Value Destroyed (144) 144 Prototype IDs (0) 0 Alien Tech Used (0) 0 Bonus (60) 60 TOTAL SCORE: 639 Bonus ------- Follower Combat Kills 60 Cogmind --------- Core Integrity 0/250 Matter 280/300 Energy 27/100 System Corruption 0% Temperature Cool (2) Movement Treading (160) Location -10/Mines Parts ------- > --- POWER (1) -------- (None) > --- PROPULSION (2) --- Light Treads Light Treads > --- UTILITY (2) ------ Large Storage Unit Large Storage Unit > --- WEAPON (2) ------- (None) > --- INVENTORY (16) --- Light Treads Light Armor Plating Light Armor Plating Hardened Light Armor Plating Hardened Light Armor Plating Hardened Light Armor Plating Hardened Light Armor Plating Autogun Autogun Autogun Autogun Grenade Launcher Mining Claw Peak State ------------ > --- POWER ------------ Light Ion Engine > --- PROPULSION ------- Aluminum Leg Aluminum Leg > --- UTILITY ---------- Large Storage Unit Large Storage Unit > --- WEAPON ----------- EM Shotgun EM Shotgun > --- INVENTORY -------- Light Ion Engine Light Treads Light Treads Hardened Light Armor Plating Hardened Light Armor Plating Hardened Light Armor Plating Hardened Light Armor Plating Autogun Autogun Autogun Autogun Grenade Launcher [Rating: 11] Favorites ----------- Power Light Ion Engine Engine Light Ion Engine Propulsion Aluminum Leg Treads Light Treads Leg Aluminum Leg Utility Large Storage Unit Storage Large Storage Unit Protection Hardened Light Armor Plating Weapon EM Shotgun Energy Gun EM Shotgun Ballistic Gun Autogun Build | -11 -10 -10 ------- Run | Scr Mat Min Slots Evolved . | . . . Power . | . . . Propulsion . | . . . Utility . | . . . Weapon . | . . . Parts Attached 10 | . 7 3 Power . | . . . Engine . | . . . Core . | . . . Reactor . | . . . Propulsion 2 | . . 2 Treads 2 | . . 2 Leg . | . . . Wheel . | . . . Hover . | . . . Flight . | . . . Utility 3 | . 3 . Device . | . . . Storage 2 | . 2 . Processor . | . . . Hackware . | . . . Protection 1 | . 1 . Artifact . | . . . Weapon 5 | . 4 1 Energy Gun 3 | . 2 1 Energy Cannon . | . . . Ballistic Gun 2 | . 2 . Ballistic Cannon . | . . . Launcher . | . . . Special Weapon . | . . . Impact Weapon . | . . . Slashing Weapon . | . . . Piercing Weapon . | . . . Special Melee Weapon . | . . . Unidentified Prototypes . | . . . Parts Lost 6 | . . 6 Power 1 | . . 1 Propulsion 2 | . . 2 Utility . | . . . Weapon 3 | . . 3 Highest Loss Streak 6 | . . 6 Average Slot Usage (%) 97 | . 97 98 Engine 13 | . 14 13 Leg 27 | . 28 26 Storage 23 | . 19 28 Protection 3 | . 5 . Energy Gun 16 | . 8 27 Ballistic Gun 11 | . 19 . Naked Turns . | . . . Heaviest Build 41 | 11 41 41 Greatest Support 40 | 20 20 40 Greatest Overweight (x) 2 | . 2 2 Average Overweight (x) 1 | . . 1 Largest Inventory Capacity 16 | 6 16 16 Average Capacity 12 | 6 10 16 Most Carried 16 | 6 14 16 Average Carried 10 | 6 8 14 Final Capacity 16 | 6 16 16 Final Carried 14 | 6 14 13 Class Distribution -------------------- 100% | Mutant Dominant Class ---------------- Mutant | -10/Materials Mutant | -10/Mines Resources | -11 -10 -10 ----------- Run | Scr Mat Min Matter Collected 389 | 200 157 32 Remotely . | . . . Salvage Created 217 | . 157 60 Parts 15 | . 11 4 Haulers Intercepted . | . . . Recyclers Shooed . | . . . Parts Field Recycled . | . . . Retrieved Matter . | . . . Parts Self-Destructed . | . . . Prevented . | . . . Kills | -11 -10 -10 ------- Run | Scr Mat Min Combat Hostiles Destroyed 6 | . 5 1 Guns 6 | . 5 1 Classes Destroyed 4 | . 3 1 Worker 1 | . 1 . Swarmer 3 | . 3 . Grunt 2 | . 2 . Sentry 1 | . . 1 Best Kill Streak 3 | . 3 1 Combat Bots Only 3 | . 3 1 Max Kills in Single Turn 1 | . 1 1 Gunslinging . | . . . Exploded . | . . . Melee . | . . . Uniques/NPCs Destroyed . | . . . Combat | -11 -10 -10 -------- Run | Scr Mat Min Damage Taken 1002 | . 190 812 Core 258 | . 46 212 Absorbed by Shields . | . . . Core Remaining (%) 100 | 100 . . Volleys Fired 22 | . 18 4 Largest 2 | . 2 2 Hottest 90 | . 70 90 Shots Fired 44 | . 36 8 Gun 44 | . 36 8 Cannon . | . . . Launcher . | . . . Special . | . . . Kinetic 31 | . 31 . Thermal 5 | . 5 . Explosive . | . . . Electromagnetic 8 | . . 8 Robot Hit Streak 7 | . 7 5 Robot Miss Streak 3 | . 3 2 Penetration Max . | . . . Secondary Targets 2 | . 2 . Max Gunslinging Chain 1 | . 1 . Shots Hit Robots 28 | . 21 7 Core Hits 14 | . 8 6 Critical Hits . | . . . Critical Kills . | . . . Critical Parts Destroyed . | . . . Melee Attacks . | . . . Impact . | . . . Slashing . | . . . Piercing . | . . . Sneak Attacks . | . . . Combat Hostiles . | . . . Follow-up Attacks . | . . . Damage Inflicted 403 | . 316 87 Guns 403 | . 316 87 Cannons . | . . . Explosions . | . . . Melee . | . . . Ramming . | . . . Kinetic 279 | . 279 . Thermal 37 | . 37 . Explosive . | . . . Electromagnetic 87 | . . 87 Impact . | . . . Slashing . | . . . Piercing . | . . . Highest Corruption . | . . . Average Corruption . | . . . Corruption Purged . | . . . Overload Shots . | . . . Overflow Damage . | . . . Projectiles . | . . . Explosions . | . . . Melee . | . . . Knockbacks . | . . . Impact . | . . . Kinetic . | . . . Secondary . | . . . Self-Inflicted Damage . | . . . Shots . | . . . Rammed . | . . . Targets Rammed . | . . . Kicked . | . . . Crushed . | . . . Highest Temperature 92 | . 92 45 Average Temperature 33 | . 36 24 Received Heat Transfer 69 | . 60 9 Siege Activations . | . . . Robots Corrupted . | . . . Combat Hostiles . | . . . Parts Fried . | . . . Impact Corruptions . | . . . Robots Melted . | . . . Combat Hostiles . | . . . Parts Melted . | . . . Heat Transferred 111 | . 111 . Parts Sabotaged . | . . . Parts Stolen . | . . . Parts Stripped . | . . . Power Chain Reactions . | . . . Missiles Intercepted . | . . . Alert | -11 -10 -10 ------- Run | Scr Mat Min Peak Influence 196 | . 196 77 Average Influence 77 | . 94 53 Maximum Alert Level . | . . . Low Security (%) 100 | 100 100 100 Level 1 . | . . . Level 2 . | . . . Level 3 . | . . . Level 4 . | . . . Level 5 . | . . . High Security . | . . . Max Security . | . . . Squads Dispatched 4 | . 4 . Investigation 2 | . 2 . Extermination . | . . . Reinforcement 2 | . 2 . Assault . | . . . Garrison . | . . . Intercept . | . . . Construction Impeded . | . . . Haulers Reinforced . | . . . Stealth | -11 -10 -10 --------- Run | Scr Mat Min Distress Signals . | . . . Communications Jammed . | . . . Distress Signals . | . . . Times Spotted 14 | . 9 5 Peak Tracking Total 3 | . 3 2 Tactical Retreats 1 | . 1 . Traps | -11 -10 -10 ------- Run | Scr Mat Min Traps Triggered . | . . . Indirectly . | . . . Trap Hack Attempts . | . . . Triggered . | . . . Disarmed . | . . . Reprogrammed . | . . . Reused . | . . . Traps Extracted . | . . . Installed . | . . . Triggered . | . . . Machines | -11 -10 -10 ---------- Run | Scr Mat Min Machines Disabled . | . . . Max in Single Turn . | . . . Machines Sabotaged . | . . . Garrisons Compromised . | . . . Overloaded Fab Kills . | . . . Fab Network Shutdowns . | . . . Hacking | -11 -10 -10 --------- Run | Scr Mat Min Machines Accessed 3 | . 3 . Terminals 1 | . 1 . Fabricators . | . . . Repair Stations . | . . . Recycling Units 2 | . 2 . Scanalyzers . | . . . Garrison Access . | . . . Total Hacks 7 | . 7 . Successful 5 | . 5 . Failed 2 | . 2 . Catastrophic . | . . . Database Lockouts . | . . . Manual 6 | . 6 . Terminals 4 | . 4 . Fabricators . | . . . Repair Stations . | . . . Recycling Units 3 | . 3 . Scanalyzers . | . . . Garrison Access . | . . . Terminal Hacks . | . . . Fabricator Hacks . | . . . Repair Station Hacks . | . . . Recycling Unit Hacks 1 | . 1 . Report Inventory 1 | . 1 . Scanalyzer . | . . . Garrison Access Hacks . | . . . Unauthorized Hacks 4 | . 4 . Terminals 2 | . 2 . Botnet 1 | . 1 . Operators 1 | . 1 . Fabricators . | . . . Repair Stations . | . . . Recycling Units 2 | . 2 . Tunnel 2 | . 2 . Scanalyzers . | . . . Garrison Access . | . . . Data Cores Recovered . | . . . Used . | . . . Hacking Detections 1 | . 1 . Full Trace Events . | . . . Feedback Events . | . . . Feedback Blocked . | . . . Robot Schematics Acquired . | . . . Robots Built . | . . . Matter . | . . . Time . | . . . Total Robot Build Rating . | . . . Part Schematics Acquired . | . . . Parts Built . | . . . Matter . | . . . Time . | . . . Total Part Build Rating . | . . . Parts Repaired . | . . . Time . | . . . Parts Recycled . | . . . Recycled Matter . | . . . Retrieved Matter . | . . . Retrieved Components . | . . . Parts Scanalyzed . | . . . Part Schematics Acquired . | . . . Parts Damaged . | . . . Bothacking | -11 -10 -10 ------------ Run | Scr Mat Min Used RIF Installer . | . . . Robots Hacked . | . . . Non-combat . | . . . Combat . | . . . Robot Hacks Applied . | . . . Relay Couplers Released . | . . . Robots Rewired . | . . . Allies Hacked . | . . . Hacks Repelled . | . . . Allies | -11 -10 -10 -------- Run | Scr Mat Min Total Allies 2 | . . 2 Largest Group 2 | . . 2 Highest-Rated Group 45 | . . 45 Highest-Rated Ally 31 | . . 31 Total Orders . | . . . Ally Attacks 4 | . . 4 Total Damage 82 | . . 82 Kills 2 | . . 2 Allies Corrupted . | . . . Allies Melted . | . . . Intel | -11 -10 -10 ------- Run | Scr Mat Min Robot Analysis Total . | . . . Derelict Logs Recovered . | . . . Drone Launches . | . . . Drone Recoveries . | . . . Exploration | -11 -10 -10 ------------- Run | Scr Mat Min Turns Passed 984 | 3 578 403 Spaces Moved 554 | 3 353 198 Core . | . . . Treads 7 | . . 7 Legs 547 | 3 353 191 Wheels . | . . . Hover . | . . . Flight . | . . . Fastest Speed 120 | 120 120 160 Average Speed 154 | 120 141 179 Slowest Speed 180 | 120 180 180 Overloaded Moves . | . . . Propulsion Burnouts . | . . . Robots Hopped . | . . . Cave-ins Triggered . | . . . Exploration Rate (%) 30 | 2 48 40 Regions Visited 2 Branch Regions 1 Pre-discovered Areas 2 | . 2 . Known Exits Taken . | . . . Unknown Exits Taken 2 | 1 1 . Scrap Searched . | . . . Spaces Dug . | . . . Terrain Destroyed . | . . . Melee . | . . . Projectile . | . . . AOE . | . . . Actions | -11 -10 -10 --------- Run | Scr Mat Min Total 646 | 2 404 240 Wait 37 | . 8 29 Move 552 | 2 352 198 Hop . | . . . Pick Up 13 | . 9 4 Fast Attach 5 | . 5 . Attach 3 | . . 3 Detach 3 | . 3 . Swap 2 | . 2 . Drop 9 | . 7 2 Fire 22 | . 18 4 Melee . | . . . Ram . | . . . Kick . | . . . Crush . | . . . Escape Stasis . | . . . Rewire . | . . . Trap . | . . . Miscellaneous . | . . . Route ------- -11/Scrapyard -10/Materials (discovered 3 exits: [*Mat] / [*Min x2]) -10/Mines (discovered 1 exit: [*Mat]) History --------- Turn | Location | Event 1 | -11/Scrapyard | Discovered new exit (range 1) 4 | -11/Scrapyard | Entered Materials 139 | -10/Materials | Discovered new exit (range 13) 181 | -10/Materials | Discovered new exit (range 16) 293 | -10/Materials | Discovered new exit (range 8) 318 | -10/Materials | Build established: Mutant 582 | -10/Materials | Entered Mines 618 | -10/Mines | Discovered new exit (range 3) 804 | -10/Mines | Joined a pair of Derelicts in attacking an 0b10 outpost 892 | -10/Mines | Assembled infested the area 970 | -10/Mines | Core integrity fell below 50% 981 | -10/Mines | Core integrity fell below 20% 985 | -10/Mines | Destroyed by D-53 Grenadier with Mini Grenade Launcher Last Messages --------------- EM Shotgun destroyed. The unstable cave ceiling collapses. Destroyed Shock Absorption System. EM Shotgun destroyed. Aluminum Leg destroyed. The unstable cave ceiling collapses. U-05 Engineer lays Concrete. The unstable cave ceiling collapses. U-05 Engineer builds a Wall. The unstable cave ceiling collapses. K-01 Serf collects debris. R-06 Scavenger destroyed. R-06 Scavenger collects Com. Wheel. The unstable cave ceiling collapses. U-05 Engineer builds a Wall. The unstable cave ceiling collapses. D-53 Grenadier destroyed. The unstable cave ceiling collapses. U-05 Engineer lays Concrete. U-05 Engineer builds a Wall. Map ----- +----------------------------------------------------+ | ????# ## ### #####?????????????????? | | ????# ## #?????????????????????? | | ????# ###### #?????????????????????? | | ????##################### ##????????????????????? | | ????????????????????## ##???????????????????? | | ???????#######??????# #???????????????????? | | ??????## ##?????# #???????????????????? | | ??????# ####### ##???????????????????? | | ?????## """ ##????????????????????? | | ?????# """ ####?????????????????????? | | ?????# """ # #######????????????????????????? | | ????## ## #??????????????????????????????? | | ????# ### #??????????????????????????????? | | ???## ##?# #??????????????????????????????? | | ??## ##??# #########??????????????????????? | | ??# #???# ###????????????????????? | | ?# #???# ## ## ##???????????????????? | | ?####### #???# # #???????????????????? | | ???????## ##### # ##???????????????????? | | ???????## # #???????????????????? | | ??????## ###### # ## ##???????????????????? | | ??????# ##????# # #????????????????????? | | ??????# #?####### ##???????????????????? | | ??????# ##?# u % # #???????????????????? | | ?????## ##??# #### # ??????????????????? | | ?????# ##??# #??## %@ # #???????????????? | | ????## ####%#???## r=%###% #???????????????? | | ???## = [#???# d ?? #??????????????? | | ??## ###%#??# ?? #?????????????? | | ??# #?# #? ?? ##?????????????? | | ?## ##?#%## ?#??????????????? | | ?# ## ##??# ## ## ???????????????? | | ?# ### ##???# ####?# ### #??????????????? | | ?# ##?# #????# #????# ##???#??????????????? | | ?##??## #???## #????# #???????????????????? | | ?????# ##### ##???# ##???????????????????? | | ????## #???# ###????????????????????? | | ????# ##??## #???????????????????????? | | ????# #### < ##??###????????????????????????? | | ????# #??## #?????????????????????????????? | | ????# ##???### #?????????????????????????????? | | ????###???????# # ##?????????????????????????????? | | ??????????????# #?#??????????????????????????????? | | ??????????????# #???########?????????????????????? | | ?????????????## #???# #?????????????????????? | | ????????????## ##??# """ #?????????????????????? | | ????????????# #### """ #?????????????????????? | | ????????????# """ #?????????????????????? | | ????????????# ## #?????????????????????? | | ????????????# ## #?????????????????????? | +----------------------------------------------------+ Best States ------------- Heat Dissipation 25 Energy Generation 10 Energy Capacity 125 Matter Stores 300 Matter Capacity 300 Sight Range 16 Terrain Scan Density 10 Armor Coverage 150 Evasion (%) 40 Recoil Reduction 2 Item Schematics ----------------- None Robot Schematics ------------------ None Fabricated ------------ Nothing Alien Tech Used ----------------- None Achievements -------------- None Challenges ------------ None Game ------ Seed GatlingGuidanceMachine Manual? 0 Play Time 00:08:40 Cumulative 198.4 hours Start 2020.09.02 @ 02:25:23 End 2020.09.02 @ 02:31:38 Sessions 1 Manual Loads 0 Difficulty Rogue Special Mode None Game No. 218 Rogue 218 Adventurer 0 Explorer 0 Win Type - Total 8 Types 6/0/2/0/0/0/0 Lore% 74 Gallery% 83 Achievement% 62 Wizard Run 0 Options --------- ASCII 0 Keyboard 1 Movement Numpad Keybinds 0 Fullscreen 1 Font 18/SmallcapsGlow Map View 76x50 Tactical HUD 1 Map Filters NONE Filters NONE Steam 1 RUN: 1ebbdd96-4190-4dd4-b37f-bdfc94f18617